{"text_format":"1","workbook":"xlsx","n_sheets":4,"sheets":["Hoja6","DASBOARD","REPORTE","FUENTES"],"not_rendered":{"charts":5,"images":7,"macros":1,"external_links":0,"defined_names":2,"comments":0,"pivot_tables":6},"unopened":[],"bounds":{"document_bytes":16777216,"sheet_cells":100000,"rows_first":2000,"rows_last":500,"rows_between":2000,"halvings":0,"cell_chars":16384,"cell_head_chars":4096},"cells_cut":0,"cells_raw":0,"read":"whole","date_system":"1900"}

{"sheet":"Hoja6","index":0,"n_rows":24,"n_cols":17,"rows_kept":24,"cut":false,"hidden":false,"merged":[]}
[]
[]
[null,"Etiquetas de columna",null,"Etiquetas de fila","Suma de No. SEGUIMIENTOS REALIZADOS",null,"Etiquetas de fila","1 SEGUIMIENTO","2 SEGUIMIENTO ","3 SEGUIMIENTO ","4 SEGUIMIENTO ","5 SEGUIMIENTO ","6 SEGUIMIENTO","7 SEGUIMIENTO","8 SEGUIMIENTO","9 SEGUIMIENTO","10 SEGUIMIENTO"]
["Valores","_PM CONTRALORIA VIG 2019_","Total general","_PM CONTRALORIA VIG 2019_",3,null,"_PM CONTRALORIA VIG 2019_",0.82199999999999995,0.90100000000000002,0.9]
["Avance",0.90100000000000002,0.90100000000000002,"Total general",3,null,"Total general",0.82199999999999995,0.90100000000000002,0.9]
["En proceso",9.8999999999999977E-2,9.8999999999999977E-2]
["No. DE PLANES DE MEJORAMIENTO",{"$f":"+COUNT(REPORTE!D7:D45)","v":39}]
[]
[]
[]
[]
[]
[]
[]
[]
[0.2,1]
[0.3,1,null,null,"Etiquetas de fila","Cuenta de PRIMER SEGUIMIENTO",null,"Etiquetas de fila","Cuenta de PRIMER SEGUIMIENTO"]
[0.4,1,null,null,"_PM CONTRALORIA VIG 2019_",1,null,2019,1]
[0.5,1,null,null,"1905-07-11",1,null,"Total general",1]
[0.6,1,null,null,"Total general",1]
[0.7,1]
[0.8,1,null,null,"OBSERVACIONES","Cuenta de PRIMER SEGUIMIENTO"]
[0.9,1,null,null,"Se mantienen abiertos 8 hallazgos que contemplan 29 actividades de las cuales cerraron 11 actividades",1]
[1,8,null,null,"Total general",1]

{"sheet":"DASBOARD","index":1,"n_rows":0,"n_cols":0,"rows_kept":0,"cut":false,"hidden":false,"merged":[]}

{"sheet":"REPORTE","index":2,"n_rows":46,"n_cols":19,"rows_kept":46,"cut":false,"hidden":false,"merged":[[4,1,4,18]]}
[]
[]
[]
[]
[]
[null,"PLANES DE MEJORAMIENTO","LINK DE ACCESO ONEDRIVE","No. SEGUIMIENTOS REALIZADOS","ESTADO DE AVANCE ACTUAL","PENDIENTE","PRIMER SEGUIMIENTO","SEGUNDO SEGUIMIENTO","TERCER SEGUIMIENTO","CUARTO SEGUIMIENTO","QUINTO SEGUIMIENTO","SEXTO SEGUIMIENTO","SEPTIMO SEGUIMIENTO","OCTAVO SEGUIMIENTO","NOVENO SEGUIMIENTO","DECIMO SEGUIMIENTO","VIGENCIA","OBSERVACIONES ","FECHA DE VENCIMIENTO "]
[null,"AC- PM  DE DIAGNOSTICO ACADÉMICO - OF GRADUADOS",null,{"$f":"+COUNT(G7:P7)","v":4},{"$f":"+MAX($G$7:$P$7)","v":0.78},{"$f":"100%-E7","v":0.21999999999999997},0.13750000000000001,0.25,0.78,0.72,null,null,null,null,null,null,2022," El cuarto seguimiento se llevó a cabo con corte al 31 de mayo del 2023  del cual se obtiene un porcentaje de 72% de avance, disminuyendo 6 puntos con relación al anterior seguimiento, de acuerdo a la revisión de la parte técnica.\n","La fecha de vencimiento del presente plan es el dia 15-12-2022"]
[null,"PM INCLUSIÓN",null,6,{"$f":"+MAX($G$8:$P$8)","v":0.85},{"$f":"100%-E8","v":0.15000000000000002},0.68,0.74,0.74,0.82,0.85,0.85,null,null,null,null,2016,"A la fecha se encuentran pendientes 7 actividades ","Vigencia 2020"]
[null,"PM RXD  VIGENCIA 2020 SGC",null,4,{"$f":"+MAX($G$9:$P$9)","v":0.98},{"$f":"100%-E9","v":2.0000000000000018E-2},0.95,0.98,0.98,0.98,null,null,null,null,null,null,2020,"En revisión de a las tres (3) actividades pendientes se\nrealiza el seguimiento con corte al 30 de junio de 2023 el cual se logra cerrar\ncon la oportuna respuesta de los procesos de 1 actividad, pendientes por\ncerrar 2 actividades en calificación 1.5.","Vigencia 2020"]
[null,"PM RXD VIGENCIA 2021 SGC",null,4,{"$f":"+MAX($G$10:$P$10)","v":0.85},0.15000000000000002,0.11,0.79,0.83,0.85,null,null,null,null,null,null,2021,"En seguimiento a este plan se evidencia veintisiete (27)\ndonde 7 se encuentran en avance del 1% , 19 cerradas y 1 que no inicia.","Vigencia 2021"]
[null,"PM RXD VIGENCIA 2021 SGA",null,4,{"$f":"+MAX($G$11:$P$11)","v":0.95},5.0000000000000044E-2,0.83,0.95,0.95,0.95,null,null,null,null,null,null,2021,"En seguimiento a esta actividad se empieza con un\nsegundo seguimiento, el proceso se presenta un retroceso sin presentar avance.","Vigencia 2021"]
[null,"PM RXD VIGENCIA 2021 SGSI",null,4,{"$f":"+MAX($G$12:$P$12)","v":0.88},0.12,0.09,0.88,0.88,0.88,null,null,null,null,null,null,2021,"En seguimiento a este plan de evidencia que\ntiene ocho (8) actividades, de las cuales tiene 6 cumplidas y 2 en curso.","vigencia 2021"]
[null,"PM RXD VIGENCIA 2021 SG-SST",null,4,{"$f":"+MAX($G$13:$P$13)","v":0.75},0.25,0.17,0.57999999999999996,0.67,0.75,null,null,null,null,null,null,2021,"En seguimiento a este plan se evidencia seis (6)\nactividades, de las cuales 3  están proximas a cerrarr. ","El plan de mejoramiento tiene un término de ejecución hasta el año  2022. "]
[null,"PM RXD VIGENCIA 2022 SGA",null,{"$f":"+COUNT(G14:P14)","v":1},{"$f":"+MAX($G$14:$P$14)","v":0.61},{"$f":"100%-E14","v":0.39},0.61,null,null,null,null,null,null,null,null,null,2023,"En seguimiento a esta actividad se empieza con un\nprimer seguimiento, el proceso presenta un avance significativo con 7\nactividades a cumplir de las cuales 6 muestran un avance para dar\ncumplimiento en el transcurso de la vigencia 2023.","Vigencia 2023"]
[null,"PM RXD VIGENCIA 2022 SGSI",null,{"$f":"+COUNT(G15:P15)","v":1},{"$f":"+MAX($G$15:$P$15)","v":0},{"$f":"100%-E15","v":1},0,null,null,null,null,null,null,null,null,null,2023,"El primer seguimiento a este plan se evidencia que tiene\nseis (6) actividades, de las cuales tiene 3 vencidas en el mes de Junio, y las\notras 3 en términos para cumplir en el II PA 2023.","Vigencia 2023"]
[null,"PM RXD VIGENCIA 2022 SG-SST",null,{"$f":"+COUNT(G16:P16)","v":1},{"$f":"+MAX($G$16:$P$16)","v":0.3},{"$f":"100%-E16","v":0.7},0.3,null,null,null,null,null,null,null,null,null,2023,"En seguimiento a este plan se evidencia diez (10)\nactividades, de las cuales están a cumplir en el segundo periodo II PA 2023.\n","Vigencia 2023"]
[null,"PM RXD VIGENCIA 2022 SGC",null,{"$f":"+COUNT(G17:P17)","v":1},{"$f":"+MAX($G$17:$P$17)","v":0.31},{"$f":"100%-E17","v":0.69},0.31,null,null,null,null,null,null,null,null,null,2023,"En seguimiento a este plan se evidencia siete (7) donde\n4 tareas presentan avance esperando a ser completadas en el II PA 2023 y 3\nestán por ejecutarse.","Vigencia 2023"]
[null,"PM ACCESIBILIDAD-INFRAESTRUCTURA",null,{"$f":"+COUNT(G18:P18)","v":5},{"$f":"+MAX($G$18:$P$18)","v":0.24},{"$f":"100%-E18","v":0.76},0,0,0.24,0.24,0.24,null,null,null,null,null,2021,"En seguimiento a este plan de mejoramiento que tiene 7\nhallazgos con veinte (20) actividades de las cuales se encuentran dos (2)\ncerradas, cuatro (4) en avance y catorce (14) en términos, no presento avance\nen este seguimiento a Junio 2023.","Vigencia 2021"]
[null,"AC- PM RENOVACIÓN ACREDITACIÓN  LIC. CIENCIAS SOCIALES",null,8,{"$f":"+MAX(G19:P19)","v":0.88},0.12,0.15,0.21,0.32,0.35,0.53,0.76,0.86,0.88,null,null,"2020-2022","Las actividades del presente plan de mejoramiento se encuentran contempladas hasta el mes de diciembre de la vigencia 2022, por tanto, las mismas no se encuentran dentro de los términos de ejecución. ","El plan de mejoramiento tiene un término de ejecución, desde el 2020 hasta el 2022. "]
[null,"AC- PM RENOVACIÓN ACREDITACIÓN INGENIERÍA ELECTRÓNICA ",null,2,{"$f":"+MAX(G20:P20)","v":0.16},0.84,0.15,0.16,null,null,null,null,null,null,null,null,2022,"Dada  a la circular N° 002  emitida por la vicerrectoria académica no se realiza seguimiento con este corte, sino hasta el mes de Agosto de la vigencia 2023","El plan de mejoramiento tiene un término de ejecución,  "]
[null,"AC- PM RENOVACIÓN ACREDITACIÓN ZOOTECNIA",null,2,{"$f":"+MAX(G21:P21)","v":0.25},0.75,0.19,0.25,null,null,null,null,null,null,null,null,2022,"Dada  a la circular N° 002  emitida por la vicerrectoria académica no se realiza seguimiento con este corte, sino hasta el mes de Agosto de la vigencia 2023","El plan de mejoramiento tiene un término de ejecución, desde el 2022 hasta el 2024. "]
[null,"AC- PM RENOVACIÓN ACREDITACIÓN MÚSICA",null,{"$f":"+COUNT(G22:P22)","v":1},{"$f":"+MAX(G22:P22)","v":0.21},0.79,0.21,null,null,null,null,null,null,null,null,null,"2022-2024","Dada  a la circular N° 002  emitida por la vicerrectoria académica no se realiza seguimiento con este corte, sino hasta el mes de Agosto de la vigencia 2023","2024-12-31"]
[null,"AC- PM DIAGNOSTICO ACADÉMICO  BIENESTAR UNIVERSITARIO",null,{"$f":"+COUNT(G23:P23)","v":1},{"$f":"+MAX(G23:P23)","v":0.17},0.83,0.17,null,null,null,null,null,null,null,null,null,"2023-2024","Dada  a la circular N° 002  emitida por la vicerrectoria académica no se realiza seguimiento con este corte, sino hasta el mes de Agosto de la vigencia 2023","2024-03-01"]
[null,"AC- PM DIAGNOSTICO ACADÉMICO  DIALOGANDO CON EL MUNDO ",null,4,0.89,0.10999999999999999,0.126,0.37,0.89,0.89,null,null,null,null,null,null,2021,"El presente plan de mejoramiento a la fecha se encuentra con dos actividades vencidas, que el cuarto seguimiento no se le dio cumplimiento.\n","El plan de mejoramiento tiene un termino de ejecución hasta el mes de septiembre del 2021.\n"]
[null,"AC- PM DIAGNOSTICO ACADÉMICO INTERACCIÓN SOCIAL UNIVERSITARIA",null,{"$f":"+COUNT(G25:P25)","v":1},{"$f":"+MAX(G25:P25)","v":0.06},0.94,0.06,null,null,null,null,null,null,null,null,null,"2023-2024","Dada  a la circular N° 002  emitida por la vicerrectoria académica no se realiza seguimiento con este corte, sino hasta el mes de Agosto de la vigencia 2023","Fecha de vecimiento 28/02/2024."]
[null,"PM INNOVACIÓN EDUCATIVA Y TRANSFORMACIÓN DIGITAL",null,{"$f":"+COUNT(G26:P26)","v":1},{"$f":"+MAX(G26:P26)","v":0.09},0.91,0.09,null,null,null,null,null,null,null,null,null,2023,"Las actividades del presente plan de mejoramiento se encuentran contempladas hasta el mes de diciembre de la vigencia 2023, por tanto, las mismas se encuentran dentro de los términos de ejecución. ","2023-12-01"]
[null,"_PM CONTRALORIA VIG 2019_",null,{"$f":"+COUNT(G27:P27)","v":3},{"$f":"+MAX(G27:P27)","v":0.90100000000000002},9.8999999999999977E-2,0.82199999999999995,0.90100000000000002,0.9,null,null,null,null,null,null,null,2019,"Se mantienen abiertos 8 hallazgos que contemplan 29 actividades de las cuales cerraron 11 actividades","1905-07-11"]
[null,"_PM CONTRALORIA VIG 2020_",null,6,0.84379999999999999,0.15620000000000001,0.33,0.35,0.46,0.81879999999999997,0.83750000000000002,0.84379999999999999,null,null,null,null,"2021-2022","N° ACTIVIDADES ABIERTAS:  21, equivalente al 26,25% del Plan de Mejoramiento. \n\nN° TOTAL DE ACTIVIDADES CERRADAS:  59, equivalente al 73,75% del Plan de Mejoramiento. ","El Plan de Mejoramiento tiene un termino de ejecución hasta agosto del 2022\n"]
[null,"_PM CONTRALORIA VIG 2021_",null,3,0.59,0.41000000000000003,0.29380000000000001,0.5,0.59,null,null,null,null,null,null,null,2023,"Actividades vencidas Cerradas: 34\nActividades vencidas Abiertas : 21\nActividades vencidas sin Avance: 7\nActividades en términos Cerradas: 2\nActividades en términos Abiertas: 13\nActividades en términos Sin avance: 13","El plan de mejoramiento tiene un término de ejecución, desde el 2022 hasta el 2023. "]
[null,"PM OMIS - SECCIONAL UBATÉ",null,9,0.93,6.9999999999999951E-2,0.33,0.71,0.88,0.88,0.88,0.88,0.92500000000000004,0.93,0.93,null,2020,": En seguimiento a las actividades se evidencia que siguen pendiente una (1) actividad","Las actividades propuestos dentro del plan de mejoramiento, tienen como fecha límite de cumplimiento, el 31 diciembre de 2020"]
[null,"PM LEY DE PROTECCIÓN DE DATOS ",null,9,0.78,0.21999999999999997,0.1,0.45,0.45,0.55000000000000004,0.64,0.66,0.69,0.73,0.78,null,2021,"Corte a 30 de Junio del 2023. Puntos por resaltar las actividades relacionadas con diagrama donde se observa la separación lógica y física del ambiente de pruebas, del ambiente de desarrollo y del ambiente de producción","vigencia 2021"]
[null,"POLITICA DE TALENTO HUMANO ",null,7,0.33,0.66999999999999993,0,0.1,0.25,0.25,0.25,0.25,0.33,null,null,null,2022,"Seguimiento corte 30 de Junio de 2023. \nNo se modifica el plan de mejora de acuerdo a la articulacion de los resultados del FURAG.","Vigencias 2020 - 2021 - 2022 - 2023"]
[null,"POLITICA DE GESTIÓN DEL CONOCIMIENTO",null,7,0.36,0.64,0.04,0.06,0.06,0.15,0.18,0.24,0.36,null,null,null,2022,"Seguimiento corte 30 de Junio de 2023.  \nNo se modifica el plan de mejora de acuerdo a la articulacion de los resultados del FURAG.","Vigencias 2020 - 2021 - 2022 - 2023"]
[null,"POLITICA DE PLANEACIÓN",null,7,0.57999999999999996,0.42000000000000004,0.17,0.5,0.57999999999999996,0.57999999999999996,0.39,0.5,0.56000000000000005,null,null,null,2022,"Seguimiento corte 30 de Junio de 2023.  \nSe modifica el plan de mejora, se incluyen nuevas actividades de acuerdo a la articulacion de los resultados del FURAG.","Vigencias 2020 - 2021 - 2022 - 2023"]
[null,"POLITICA DE DEFENSA JURIDICA",null,7,0.35,0.65,0,0,0.25,0.32,0.32,0.33,0.35,null,null,null,2022,"Seguimiento corte 30 de Junio de 2023. \nNo se modifica el plan de mejora de acuerdo a la articulacion de los resultados del FURAG.","Vigencias 2020 - 2021 - 2022 - 2023"]
[null,"POLITICA DE CONTROL INTERNO",null,8,0.71,0.29000000000000004,0.1,0.22,0.28999999999999998,0.53,0.64,0.71,0.64,0.67,null,null,2022,"Seguimiento corte 30 de Junio de 2023. \nSe modifica el plan de mejora, se incluyen nuevas actividades de acuerdo a la articulacion de los resultados del FURAG.","Vigencias 2020 - 2021 - 2022 - 2023"]
[null,"POLITICA DE FORTALECIMIENTO ORGANIZACIONAL ",null,8,0.38,{"$f":"100%-E37","v":0.62},0.19,0.24,0.33,0.33,0.38,0.38,0.38,0.38,null,null,2022,"Seguimiento corte 30 de Junio de 2023. \nNo se modifica el plan de mejora de acuerdo a la articulacion de los resultados del FURAG.","Vigencias 2020 - 2021 - 2022 - 2023"]
[null,"POLITICA DE GOBIERNO DIGITAL",null,8,0.36,0.64,0.09,0.1,0.1,0.23,0.23,0.27,0.31,0.36,null,null,2022,"Seguimiento corte 30 de Junio de 2023. \n. Se modifica el plan de mejora, se incluyen nuevas actividades de acuerdo a la articulacion de los resultados del FURAG.\n","Vigencias 2020 - 2021 - 2022 - 2023"]
[null,"POLITICA DE SEGURIDAD DIGITAL ",null,7,0.37,0.63,7.0000000000000007E-2,7.0000000000000007E-2,7.0000000000000007E-2,7.0000000000000007E-2,7.0000000000000007E-2,7.0000000000000007E-2,0.37,null,null,null,2022,"Seguimiento corte 30 de Junio de 2023. \n Se modifica el plan de mejora, se incluyen nuevas actividades de acuerdo a la articulacion de los resultados del FURAG.","Vigencias 2020 - 2021 - 2022 - 2023"]
[null,"POLITICA DE PARTICIPACIÓN CIUDADANA",null,8,0.67,0.32999999999999996,7.0000000000000007E-2,0.26,0.33,0.59,0.67,0.55000000000000004,0.55000000000000004,0.55000000000000004,null,null,2022,"Seguimiento corte 30 de Junio de 2023. \nSe modifica el plan de mejora, se incluyen nuevas actividades de acuerdo a la articulacion de los resultados del FURAG.","Vigencias 2020 - 2021 - 2022 - 2023"]
[null,"POLITICA DE SEGUIMIENTO Y EVALUACIÓN",null,7,0.67,0.32999999999999996,0.11,0.33,0.33,0.44,0.67,0.67,0.67,null,null,null,2022,"Seguimiento corte 30 de Junio de 2023. \n No se modifica el plan de mejora de acuerdo a la articulacion de los resultados del FURAG.","Vigencias 2020 - 2021 - 2022 - 2023"]
[null,"POLITICA DE TRANSPARENCIA",null,{"$f":"+COUNT(G42:P42)","v":7},{"$f":"+MAX(G42:P42)","v":0.67},0.32999999999999996,0.11,0.11,0.22,0.56000000000000005,0.33,0.53,0.67,null,null,null,2022,"Seguimiento corte 30 de Junio de 2023.\nSe modifica el plan de mejora, se incluyen nuevas actividades de acuerdo a la articulacion de los resultados del FURAG.","Vigencias 2020 - 2021 - 2022 - 2023"]
[null,"POLITICA DOCUMENTAL",null,{"$f":"+COUNT(G43:P43)","v":8},{"$f":"+MAX(G43:P43)","v":0.33},{"$f":"100%-E43","v":0.66999999999999993},0.17,0.17,0.17,0.33,0.33,0.13,0.23,0.23,null,null,2022,"Seguimiento corte 30 de Junio de 2023. \n Se modifica el plan de mejora, se incluyen nuevas actividades de acuerdo a la articulacion de los resultados del FURAG.","Vigencias 2020 - 2021 - 2022 - 2023"]
[null,"POLITICA INFORMACIÓN Y COMUNICACIONES ",null,3,{"$f":"+MAX(G44:P44)","v":0.93},{"$f":"100%-E44","v":6.9999999999999951E-2},0.89,0.89,0.93,null,null,null,null,null,null,null,2022,"Seguimiento corte 30 de Junio de 2023. \n","Vigencias 2020 - 2021 - 2022 - 2023"]
[null,"POLITICA DEL SISTEMA DE ATENCIÓN AL CIUDADANO",null,{"$f":"+COUNT(G45:P45)","v":9},{"$f":"+MAX(G45:P45)","v":0.61},{"$f":"100%-E45","v":0.39},0.06,0.19,0.22,0.28000000000000003,0.5,0.61,0.48,0.47,0.56000000000000005,null,2022,"Seguimiento corte 30 de Junio de 2023. \n  Se modifica el plan de mejora, se incluyen nuevas actividades de acuerdo a la articulacion de los resultados del FURAG.","Vigencias 2020 - 2021 - 2022 - 2023"]
[null,null,null,null,null,{"$f":"+(MAX(#REF!)+MAX(G19:K19)+MAX(G24:K24)+MAX(#REF!)+MAX(#REF!)+MAX(#REF!)+MAX(#REF!)+MAX(#REF!)+MAX(#REF!)+MAX(#REF!)+MAX(#REF!)+MAX(#REF!)+MAX(G30:K30)+MAX(#REF!)+MAX(#REF!)+MAX(#REF!)+MAX(#REF!)+MAX(#REF!)+MAX(#REF!)+MAX(#REF!)+MAX(#REF!)+MAX(#REF!)+MAX(#REF!)+MAX(#REF!)+MAX(#REF!)+MAX(#REF!)+MAX(#REF!))/COUNT(D7:D45)","v":{"$error":"#REF!"}},{"$f":"100%-F46","v":{"$error":"#REF!"}}]

{"sheet":"FUENTES","index":3,"n_rows":31,"n_cols":8,"rows_kept":31,"cut":false,"hidden":false,"merged":[[2,3,2,7]]}
[]
[]
[null,null,null,"FECHAS DE SEGUIMIENTO "]
[null,"PLANES DE MEJORAMIENTO","LINK DE ACCESO ONEDRIVE","PRIMER SEGUIMIENTO","SEGUNDO SEGUIMIENTO","TERCER SEGUIMIENTO","CUARTO SEGUIMIENTO","QUINTO SEGUIMIENTO"]
[null,"PM SISTEMA DE GESTIÓN AMBIENTAL",{"$f":"+COUNT(D5:H5)","v":0}]
[null,"PM REACREDITACIÓN SOCIALES",{"$f":"+COUNT(D6:H6)","v":0}]
[null,"PM CONTRALORIA",0]
[null,"PM CONDICIONES INCIALES",0]
[null,"PM BRECHAS TRANSPARENCIA",0]
[null,"PM FURAG - PLANEACIÓN",0]
[null,"PM FURAG - SISTEMAS Y TECNOLOGIA",0]
[null,"PM FURAG - CONTROL INTERNO",0]
[null,"PM FURAG - SERVICIO DE ATENCIÓN AL CIUDADANO",0]
[null,"PM FURAG - COMUNICACIONES",0]
[null,"PM FURAG - ARCHIVO Y CORRESPONDENCIA",0]
[null,"PM CONDICIONES INSTITUCIONALES",0]
[null,"PM OMIS - SECCIONAL UBATÉ",0]
[null,"PM OMIS - SECCIONAL GIRARDOT",0]
[null,"PM OMIS - EXTENSIÓN ZIPAQUIRA",0]
[null,"PM OMIS - EXTENSIÓN SOACHA",0]
[null,"PM OMIS -  EXTENSIÓN FACATATIVA",0]
[null,"PM OMIS - EXTENSIÓN CHÍA",0]
[null,"PM SABER PRO - ADMON EMPRESAS FGGA",0]
[null,"PM SABER PRO - ENFERMERIA GDTO",0]
[null,"PM SABER PRO -  MUSICA ZIPA",0]
[null,"PM SABER PRO - LIC CIENCIAS DEL DEPORTE FGGA",0]
[null,"PM SABER PRO - ZOOTECNIA FGGA",0]
[null,"PM SABER PRO - ING ELECTRONICA FGGA",0]
[null,"PM SABER PRO - LIC CIENCIAS SOCIALES FGGA",0]
[null,"PM LEY ANTISOBORNO",0]
[null,"CITGO DIGITAL",0]